bitfinex/quotes_ETHUSD_20241204
["timestamp","ask_amount","ask_price","bid_price","bid_amount"]
[1733321480305,8.84,3698.5,3698.4,2.70387]
[1733321480818,0.751,3699.8,3698.4,0.7591]
[1733321481177,0.751,3699.8,3699.2,2.70322]
[1733321481606,0.4014225,3699.7,3699.2,2.70322]
[1733321481808,0.751,3699.8,3699.2,2.70322]
[1733321481809,0.4014225,3699.6,3699.2,2.70322]
[1733321482014,0.4014225,3699.5,3698.9,3.22701202]
[1733321482177,0.41814844,3700.2,3700.0,2.70263]
[1733321482525,0.40150042,3700.1,3699.5,0.757]
[1733321482824,0.40150042,3700.0,3699.9,2.70277]
[1733321483120,0.40150042,3700.4,3699.5,0.757]
[1733321483424,0.7592,3700.6,3699.5,0.757]
[1733321483425,0.40150042,3700.3,3700.2,2.70252]
[1733321483630,0.40150042,3700.5,3700.2,2.70252]
[1733321483797,0.7592,3700.6,3700.2,2.70252]
[1733321483976,0.40159734,3700.5,3700.2,2.70252]
[1733321484181,0.7592,3700.6,3700.2,2.70252]
[1733321484403,0.40150229,3700.5,3700.2,2.70252]
[1733321484609,0.7592,3700.6,3699.4,3.0]
[1733321484610,0.40152398,3700.4,3699.4,3.0]
[1733321484917,0.771,3700.1,3699.1,0.8237]
[1733321485083,0.771,3700.1,3699.7,2.70291]
[1733321485084,0.40152398,3700.0,3699.7,2.70291]
[1733321485286,0.771,3700.1,3699.7,2.70291]
[1733321485681,0.771,3700.1,3699.1,0.8237]
[1733321485912,0.771,3700.1,3699.4,2.70307]
[1733321486137,0.771,3700.1,3699.1,3.52701]
[1733321486293,0.771,3700.1,3699.6,2.70298]
[1733321487737,0.771,3700.1,3699.3,2.70318]
[1733321488309,9.611,3700.1,3699.1,2.70335]
[1733321488496,9.611,3700.1,3698.9,3.19997863]
[1733321488832,2.80256031,3700.5,3700.3,2.70244]
[1733321489021,4.0,3700.4,3700.3,2.70244]
[1733321489809,2.80256031,3700.5,3700.3,2.70244]
[1733321490427,2.80256031,3700.5,3700.4,2.70241]
[1733321491001,2.24204825,3700.7,3700.6,2.70226]
[1733321491201,2.24204825,3700.7,3700.6,9.68913863]
[1733321492812,2.24204825,3700.7,3700.6,2.70226]
[1733321494105,0.7907,3701.4,3701.0,2.70193]
[1733321494518,0.7907,3701.4,3700.4,3.0]
[1733321494724,0.7907,3701.4,3700.4,4.00833426]
[1733321495008,0.7907,3701.4,3700.4,1.00833426]
[1733321495210,0.7907,3701.4,3700.9,2.70198]
[1733321495464,0.8261,3702.0,3700.9,2.70204]
[1733321495602,0.8261,3702.0,3701.3,2.70168]
[1733321495809,9.6661,3702.0,3701.4,2.70165]
[1733321496443,9.6661,3702.0,3700.6,5.90218863]
[1733321496444,9.6661,3702.0,3701.5,2.70159]
[1733321496748,0.8261,3702.0,3701.6,2.70153]
[1733321497117,0.8261,3702.0,3701.3,2.70169]
[1733321497456,0.8261,3702.0,3701.3,2.7017]
[1733321497607,0.8261,3702.0,3700.6,3.19997863]
[1733321497953,0.8261,3702.0,3701.7,2.70145]
[1733321498106,0.28036931,3702.3,3701.1,2.70189]
[1733321498304,0.28036931,3702.3,3702.2,2.70109]
[1733321498517,0.53557136,3702.7,3701.8,3.19997863]
[1733321498718,0.69706016,3702.7,3702.2,2.70109]
[1733321500240,0.69706016,3702.7,3702.0,2.70122]
[1733321500424,0.69706016,3702.7,3701.8,3.19997863]
[1733321500425,0.7626,3702.6,3701.8,2.70137]
[1733321500626,0.7626,3702.6,3701.2,0.7771]
[1733321500854,3.4634,3702.6,3701.4,2.70161]
[1733321501143,11.54111,3702.2,3700.8,0.823]
[1733321501353,11.54111,3702.2,3700.6,3.19997863]
[1733321501354,3.8026,3702.1,3700.9,2.70203]
[1733321501507,2.70132,3701.9,3700.7,2.70218]
[1733321501711,0.7944,3701.8,3700.7,2.70218]
[1733321501933,0.7944,3701.8,3700.8,2.70211]
[1733321502854,3.49579,3701.8,3700.8,2.70211]
[1733321503854,0.7944,3701.8,3700.8,2.70211]
[1733321504212,0.544709,3701.7,3700.6,2.70224]
[1733321504549,0.544709,3701.7,3700.4,0.823]
[1733321504550,9.6274,3701.6,3700.4,2.70234]
[1733321504750,12.32893,3701.6,3700.2,3.19997863]
[1733321504951,12.32893,3701.6,3700.5,2.70227]
[1733321505170,3.0,3701.3,3699.9,0.7684]
[1733321505449,3.0,3701.3,3699.5,0.7684]
[1733321505450,2.70203,3701.0,3699.5,0.7684]
[1733321505650,8.8148,3701.2,3699.5,0.7684]
[1733321505651,5.70191,3701.1,3699.5,0.7684]
[1733321505949,5.70191,3701.1,3700.1,2.70261]
[1733321506154,0.55195304,3701.0,3700.1,2.70261]
[1733321506644,3.25394304,3701.0,3699.5,0.7684]
[1733321506847,3.25394304,3701.0,3699.5,3.47144]
[1733321507046,0.55195304,3701.0,3699.9,2.70274]
[1733321507421,0.55195304,3701.0,3700.0,2.70268]
[1733321507621,0.55195304,3701.0,3699.6,2.70299]
[1733321507936,0.55195304,3701.0,3700.0,2.70268]
[1733321508144,0.7869,3700.9,3700.0,2.70268]
[1733321508355,0.7869,3700.9,3700.0,2.70263]
[1733321509016,0.7869,3700.9,3700.1,2.70255]
[1733321509460,9.6017,3700.9,3700.1,2.70255]
[1733321509771,9.6017,3700.9,3699.5,0.7684]
[1733321509927,8.8148,3700.9,3700.7,2.70212]
[1733321510139,0.7868,3701.3,3700.3,0.7694]
[1733321510334,0.7868,3701.3,3700.9,2.702]
[1733321510533,0.7868,3701.3,3701.0,2.70196]
[1733321510846,9.0656134,3701.7,3700.3,0.7694]
[1733321511017,9.0656134,3701.7,3700.6,2.70226]
[1733321511217,9.0656134,3701.7,3701.4,2.70164]
[1733321511414,9.0656134,3701.7,3701.0,2.70196]
[1733321511415,8.8148,3701.7,3701.0,2.70196]
[1733321511667,8.8148,3701.7,3700.6,2.70226]
[1733321511974,8.8148,3701.7,3701.2,2.70175]
[1733321512641,8.8148,3701.7,3700.9,2.70202]
[1733321515167,8.8148,3701.7,3701.0,2.70196]
[1733321515368,8.8148,3701.8,3701.0,2.70196]
[1733321515534,8.8148,3701.8,3700.5,3.19997863]
[1733321515857,8.8148,3701.8,3701.3,2.70172]
[1733321516564,8.8148,3701.8,3701.4,2.70166]
[1733321516857,8.8148,3701.8,3701.7,2.70146]
[1733321517360,8.8148,3701.8,3700.6,0.8278]
[1733321517568,8.8148,3701.8,3701.1,2.70188]
[1733321517772,8.8148,3701.8,3700.7,0.47247165]
[1733321517982,8.8148,3701.8,3700.7,3.17465165]
[1733321518125,8.8148,3701.8,3700.9,2.70202]
[1733321518867,0.25128747,3701.7,3701.2,2.70176]
[1733321519376,8.8148,3701.8,3700.5,3.19997863]
[1733321519532,8.8148,3701.8,3701.6,2.70152]
[1733321520175,0.28010911,3702.1,3701.8,2.70131]
[1733321520344,0.28010911,3702.1,3701.4,2.70168]
[1733321520345,0.28010911,3702.1,3702.0,2.70124]
[1733321520665,0.54538179,3702.7,3701.6,0.02701315]
[1733321520828,1.34468179,3702.7,3702.1,2.70112]
[1733321521026,1.34468179,3702.7,3702.4,2.70089]
[1733321521237,0.7993,3702.7,3702.4,2.70089]
[1733321521491,0.7993,3702.7,3702.6,2.7008]
[1733321521673,9.09471881,3703.4,3702.1,3.19997863]
[1733321521674,0.7993,3703.2,3702.1,3.19997863]
[1733321521971,1.05057771,3703.2,3702.9,2.70057]
[1733321522464,1.05057771,3703.2,3703.1,2.70044]
[1733321522465,0.25127771,3703.2,3703.1,2.70044]
[1733321522673,0.25127771,3703.2,3703.0,2.7005]
[1733321522829,0.8273,3703.7,3703.0,2.7005]
[1733321523166,0.8273,3703.7,3702.2,3.52484]
[1733321523376,0.8094,3703.4,3702.2,2.70107]
[1733321523541,3.50984,3703.1,3702.0,2.70117]
[1733321523758,2.70051,3703.0,3701.7,3.19997863]
[1733321523958,2.70051,3703.0,3701.9,2.7013]
[1733321524257,2.70088,3702.5,3700.9,6.69126863]
[1733321524584,2.70088,3702.5,3701.4,2.70165]
[1733321524787,9.5763,3702.6,3701.6,2.70152]
[1733321525084,0.25094732,3702.5,3702.0,2.70118]
[1733321525301,0.25094732,3702.5,3702.1,2.70113]
[1733321525589,9.5763,3702.6,3701.8,2.70134]
[1733321525796,9.5763,3702.6,3701.3,3.97217863]
[1733321525951,9.5763,3702.6,3701.3,3.19997863]
[1733321526149,9.5763,3702.6,3700.9,3.0]
[1733321526150,0.7912,3702.2,3701.1,2.70185]
[1733321526349,3.49229,3702.2,3701.1,2.70186]
[1733321526653,0.7912,3702.2,3701.2,2.70179]
[1733321526879,0.7912,3702.2,3701.3,2.70174]
[1733321527077,0.7912,3702.2,3701.3,2.70169]
[1733321528056,0.7912,3702.2,3701.4,2.70165]
[1733321528259,0.7912,3702.2,3701.6,2.70147]
[1733321528458,0.7912,3702.2,3701.3,3.19997863]
[1733321528668,0.7912,3702.2,3701.5,2.70153]
[1733321529097,0.7912,3702.2,3701.4,0.59017786]
[1733321529268,0.7912,3702.2,3701.6,2.70153]
[1733321529963,0.7912,3702.2,3701.4,0.59017786]
[1733321530359,0.7912,3702.2,3701.6,2.70153]
[1733321530559,0.8155,3702.7,3701.8,2.70136]
[1733321530803,1.06643748,3702.7,3701.8,2.70136]
[1733321531167,0.8155,3702.7,3702.1,2.7011]
[1733321531505,0.8155,3702.7,3701.9,2.70131]
[1733321531703,0.8155,3702.7,3701.7,0.762]
[1733321532416,1.91108901,3703.3,3701.7,0.762]
[1733321532417,0.7797,3703.2,3702.5,2.7008]
[1733321532719,0.7797,3703.2,3702.1,3.19997863]
[1733321532870,0.7797,3703.2,3702.2,0.59011686]
[1733321533066,0.7797,3703.2,3702.1,3.19997863]
[1733321533413,0.7797,3703.2,3701.9,2.70126]
[1733321533414,2.70052,3703.0,3701.9,2.70127]
[1733321533598,0.8204,3703.0,3701.8,2.70136]
[1733321533787,0.8204,3703.0,3701.7,0.762]
[1733321533970,0.8204,3703.0,3701.7,3.96197863]
[1733321534176,0.8204,3703.0,3702.3,2.70102]
[1733321534570,0.8204,3703.0,3701.9,3.0]
[1733321534798,0.8204,3703.0,3702.2,2.70105]
[1733321535240,0.25078601,3703.3,3702.5,3.98827863]
[1733321535540,0.8045,3703.4,3702.5,3.98827863]
[1733321535695,0.8045,3703.4,3702.6,0.39882786]
[1733321535894,0.25078601,3703.8,3702.9,3.19997863]
[1733321536095,0.8013,3704.0,3703.0,0.02700052]
[1733321536351,0.8013,3704.0,3703.6,2.70001]
[1733321536500,1.0697841,3704.4,3703.0,0.7734]
[1733321536701,0.8189,3704.4,3703.6,2.70007]
[1733321537196,0.53665734,3704.3,3703.6,2.70007]
[1733321537933,0.53665734,3704.3,3703.4,2.7002]
[1733321538131,0.8189,3704.4,3703.6,2.70006]
[1733321538335,0.8189,3704.4,3703.7,2.69996]
[1733321538930,0.27967227,3704.7,3703.7,2.69996]
[1733321538931,0.53035968,3704.7,3703.8,0.7731]
[1733321539229,0.53035968,3704.7,3704.5,3.19997863]
[1733321539438,0.27967227,3704.7,3704.5,5.89938863]
[1733321539617,0.7737,3705.3,3704.6,2.69934]
[1733321540034,0.7737,3705.3,3704.5,3.19997863]
[1733321540215,0.7737,3705.3,3704.5,2.6994]
[1733321540544,0.25063512,3705.5,3705.3,2.6988]
[1733321540753,1.12195626,3705.8,3705.4,3.49584813]
[1733321540958,1.12195626,3705.8,3705.7,5.89851863]
[1733321542018,1.12195626,3705.8,3705.7,3.19997863]
[1733321542210,1.12195626,3705.8,3705.7,5.89851863]
[1733321542406,1.12195626,3705.8,3705.4,0.7701]
[1733321542747,1.12195626,3705.8,3705.0,3.5255]
[1733321542947,1.12195626,3705.8,3705.0,0.8265]
[1733321543343,0.7887,3705.7,3704.9,3.19997863]
[1733321543547,3.48724,3705.7,3704.6,1.09644]
[1733321543835,0.7887,3705.7,3704.9,3.19997863]
[1733321544151,0.7387,3705.7,3704.9,3.19997863]
[1733321546723,3.43725,3705.7,3704.9,3.19997863]
[1733321547023,0.7387,3705.7,3704.9,3.65660873]
[1733321547215,0.7387,3705.7,3704.9,3.15740873]
[1733321547548,0.7387,3705.7,3704.9,3.13042049]
[1733321551317,3.43724,3705.7,3704.9,3.13042049]
[1733321551519,3.43724,3705.7,3704.9,2.70077863]
[1733321551852,0.7387,3705.7,3704.9,2.70077863]
[1733321552347,3.43727,3705.7,3704.9,2.70077863]
[1733321552556,0.7387,3705.7,3705.3,3.19997863]
[1733321552853,3.7553,3706.5,3705.4,0.8144]
[1733321553038,0.7553,3706.5,3705.7,3.19997863]
[1733321553794,3.45327,3706.5,3705.7,3.19997863]
[1733321554157,0.7553,3706.5,3705.7,3.19997863]
[1733321554566,2.69805,3706.4,3705.7,3.19997863]
[1733321555086,0.7553,3706.5,3705.7,3.19997863]
[1733321556155,0.7553,3706.5,3705.1,0.8009]
[1733321556353,3.45327,3706.5,3705.3,3.19997863]
[1733321556549,0.7553,3706.5,3705.7,3.19997863]
[1733321556795,0.8278,3706.8,3705.8,0.8009]
[1733321556975,0.8278,3706.8,3705.9,2.72536092]
[1733321557181,0.27969297,3706.9,3706.1,3.19997863]
[1733321557520,0.75,3707.2,3706.5,3.19997863]
[1733321557696,0.75,3707.2,3706.9,5.89761863]
[1733321557992,0.75,3707.2,3707.0,2.69755]
[1733321558190,0.75,3707.2,3707.0,3.45245]
[1733321558655,0.75,3707.2,3707.0,0.7549]
[1733321558992,0.7717,3707.1,3706.4,0.7952]
[1733321559297,0.75,3707.2,3706.4,0.7952]
[1733321559599,0.90217,3707.2,3706.4,0.7952]
[1733321559798,2.69761,3707.0,3705.9,0.7952]
[1733321559952,0.7974,3707.1,3705.9,0.7952]
[1733321560152,2.69775,3706.8,3705.9,0.7952]
[1733321560399,2.69759,3707.0,3705.9,0.7952]
[1733321560703,0.7974,3707.1,3705.9,0.7952]
[1733321561599,0.7525,3706.2,3705.0,0.8288]
[1733321561805,2.69825,3706.1,3705.0,3.52785]
[1733321562020,0.7525,3706.2,3705.1,2.69897]
[1733321562167,2.69825,3706.1,3705.0,0.8288]
[1733321562372,0.7525,3706.2,3704.9,5.89908863]
[1733321562373,0.7525,3706.2,3704.9,3.19997863]
[1733321562712,0.7525,3706.2,3704.7,0.8288]
[1733321562713,2.69855,3705.7,3704.7,0.8288]
[1733321562875,2.69827,3706.1,3704.7,0.8288]
[1733321563212,0.7525,3706.2,3705.1,2.69896]
[1733321563425,0.7525,3706.2,3705.3,3.19997863]
[1733321563771,2.69843,3705.9,3704.9,3.19997863]
[1733321563974,2.69826,3706.1,3705.0,2.72601734]
[1733321564320,2.69854,3705.7,3704.9,3.19997863]
[1733321564866,2.69837,3706.0,3704.9,3.19997863]
[1733321565120,0.7525,3706.2,3705.0,0.02698694]
[1733321565279,3.53617276,3706.6,3705.4,3.52456]
[1733321565280,1.0083304,3706.5,3705.4,3.52456]
[1733321565479,0.7575,3706.5,3705.4,3.52456]
[1733321565784,1.00830384,3706.5,3705.4,0.8258]
[1733321566006,2.69813,3706.3,3705.4,0.8258]
[1733321566209,1.00830384,3706.5,3705.4,0.8258]
[1733321566426,2.69818,3706.2,3705.4,0.8258]
[1733321567028,0.25109411,3706.1,3704.9,3.19997863]
[1733321567235,3.50869,3705.7,3704.9,3.19997863]
[1733321567608,0.8101,3705.7,3704.9,3.19997863]
[1733321568351,0.8101,3706.0,3704.9,3.19997863]
[1733321568512,2.6984,3705.9,3704.9,3.19997863]
[1733321568697,2.69849,3705.8,3704.9,3.19997863]
[1733321568908,0.25147639,3705.7,3704.9,3.19997863]
[1733321569104,0.25147639,3705.7,3704.8,0.7932]
[1733321569336,2.69884,3705.3,3704.2,2.69963]
[1733321569646,2.95014639,3705.6,3704.5,2.6994]
[1733321569847,2.69886,3705.3,3704.4,3.19997863]
[1733321570006,3.35273857,3705.5,3704.4,3.19997863]
[1733321570353,0.2516166,3705.4,3704.5,2.69941]
[1733321570501,0.2516166,3705.3,3704.5,2.69941]
[1733321570702,2.6987,3705.5,3704.4,3.19997863]
[1733321570928,0.2516166,3705.4,3704.4,3.86569049]
[1733321571137,0.2516166,3705.3,3704.4,3.86569049]
[1733321571612,0.25172757,3705.3,3704.4,3.86569049]
[1733321572304,2.69884,3705.3,3704.4,3.86569049]
[1733321572835,2.69905,3705.0,3704.1,0.7576]
[1733321573150,0.812,3705.1,3704.1,0.7576]
[1733321573440,1.363626,3705.5,3704.5,2.69941]
[1733321573652,2.69876,3705.4,3704.4,3.19997863]
[1733321574021,1.363626,3705.5,3704.1,0.7576]
[1733321574022,2.69884,3705.3,3704.1,3.45729]
[1733321574219,2.69884,3705.3,3704.1,4.39300486]
[1733321574405,2.69884,3705.3,3704.2,2.69963]
[1733321575147,2.69884,3705.3,3704.3,2.69956]
[1733321575613,4.062326,3705.5,3704.4,2.69948]
[1733321576029,2.69876,3705.4,3704.4,2.69948]
[1733321576248,2.69876,3705.4,3704.2,2.69963]
[1733321576739,1.363626,3705.5,3704.1,1.69331486]
[1733321576948,1.363626,3705.5,3704.1,0.7576]
[1733321576949,2.69911,3705.0,3704.1,0.7576]
[1733321577103,1.363626,3705.5,3704.1,0.7576]
[1733321577304,1.363626,3705.5,3704.2,2.69963]
[1733321577514,2.69899,3705.1,3704.1,0.7576]
[1733321577916,2.69884,3705.3,3704.1,3.45724]
[1733321578230,2.69901,3705.1,3704.1,3.45724]
[1733321578622,1.363626,3705.5,3704.1,0.7576]
[1733321578818,0.8062,3705.3,3703.7,0.8297]
[1733321579022,2.69939,3704.6,3703.7,0.8297]
[1733321579413,2.69922,3704.8,3703.7,0.8297]
[1733321579715,2.69931,3704.7,3703.7,0.8297]
[1733321580307,0.54562151,3704.8,3703.7,0.8297]
[1733321580308,2.69937,3704.6,3703.7,0.8297]
[1733321580510,0.7534,3704.6,3703.7,0.8297]
[1733321580746,0.7534,3704.6,3702.8,2.70058]
[1733321580747,2.6995,3704.4,3702.9,3.51224]
[1733321581050,3.45277,3704.6,3703.6,0.8117]
[1733321581255,9.6025,3705.0,3704.2,2.69959]
[1733321581465,9.6025,3705.0,3704.3,0.02699367]
[1733321581466,8.8148,3705.0,3704.3,0.02699367]
[1733321581674,0.7769,3705.4,3704.5,2.69936]
[1733321581964,0.7769,3705.4,3704.4,0.7754]
[1733321581965,2.69884,3705.3,3704.4,0.7754]
[1733321582170,1.30955624,3705.4,3703.7,5.69997]
[1733321582171,2.69925,3704.8,3703.7,5.69997]
[1733321582311,2.42362652,3705.4,3703.8,0.7753]
[1733321582639,3.60565306,3705.4,3704.5,0.7753]
[1733321582842,0.53265624,3705.4,3704.7,2.69927]
[1733321583151,0.25130544,3705.6,3704.5,0.7753]
[1733321583306,4.05136288,3705.7,3704.5,0.7753]
[1733321583642,2.6987,3705.5,3704.5,0.7753]
[1733321583851,2.69918,3704.9,3703.8,0.8104]
[1733321584050,2.51054563,3705.6,3703.8,0.8104]
[1733321584051,0.773,3704.8,3703.8,0.8104]
[1733321584351,2.69936,3704.6,3703.8,0.8104]
[1733321584549,2.69942,3704.5,3703.8,0.8104]
[1733321584923,0.773,3704.8,3703.8,0.8104]
[1733321585132,2.69936,3704.6,3703.8,0.8104]
[1733321585325,0.773,3704.8,3703.4,0.7888]
[1733321585532,2.69956,3704.4,3703.4,0.7888]
[1733321585843,2.69935,3704.6,3703.5,2.70012]
[1733321586158,2.6992,3704.8,3703.8,0.8165]
[1733321586331,2.6992,3704.8,3703.8,3.51641]
[1733321586928,2.69908,3705.0,3703.8,0.8165]
[1733321587268,2.69908,3705.0,3704.0,2.69975]
[1733321587446,0.53278444,3705.2,3704.1,0.02699607]
[1733321587657,3.0,3705.2,3704.3,3.49263]
[1733321587967,1.67110542,3705.6,3704.5,2.69935]
[1733321587968,1.11407028,3705.5,3704.5,2.69935]
[1733321588117,4.74350706,3705.5,3704.5,2.69935]
[1733321588315,2.04480706,3705.5,3704.3,0.7931]
[1733321588544,4.74353706,3705.5,3704.3,0.7931]
[1733321588730,2.04480706,3705.5,3704.3,0.7931]
[1733321588932,2.29630797,3705.5,3704.3,0.7931]
[1733321589127,7.99503797,3705.5,3704.3,0.7931]
[1733321589349,3.25150091,3705.4,3704.3,0.7931]
[1733321589563,0.25150091,3705.3,3704.3,0.7931]
[1733321589730,2.69897,3705.2,3704.3,0.7931]
[1733321589928,3.0,3705.4,3704.3,0.7931]
[1733321590167,2.69908,3705.0,3704.3,0.7931]
[1733321590363,2.69883,3705.3,3704.3,0.7931]
[1733321590575,0.7942,3705.1,3703.8,0.8253]
[1733321590866,0.7942,3705.1,3703.6,2.70005]
[1733321590867,2.69951,3704.4,3703.5,0.8253]
[1733321592740,2.69969,3704.2,3703.5,0.8253]
[1733321592925,0.7894,3704.5,3703.5,0.8253]
[1733321593130,3.48883,3704.5,3703.5,0.8253]
[1733321593363,2.69955,3704.4,3703.5,0.8253]
[1733321593562,0.7894,3704.5,3703.5,0.8253]
[1733321593765,2.69949,3704.4,3703.5,0.8253]
[1733321594263,2.69978,3704.1,3703.5,0.8253]
[1733321594566,0.25199602,3704.3,3701.7,0.7706]
[1733321594567,0.7628,3703.6,3701.7,0.7706]
[1733321594766,0.7628,3702.5,3701.0,0.7706]
[1733321594973,2.70102,3702.3,3701.0,0.7706]
[1733321595284,2.70125,3702.0,3701.0,0.7706]
[1733321595881,2.70132,3701.9,3701.0,0.7706]
[1733321596233,3.0,3702.1,3701.0,0.7706]
[1733321596466,3.47115,3701.6,3700.5,0.7937]
[1733321596830,2.70162,3701.5,3700.5,0.7937]
[1733321597035,2.7017,3701.4,3700.5,0.7937]
[1733321597230,0.7696,3701.6,3700.5,0.7937]
[1733321597472,2.70183,3701.2,3700.5,0.7937]
[1733321597657,2.70191,3701.1,3700.5,0.7937]
[1733321597865,3.0,3701.4,3699.5,0.8035]
[1733321598181,3.24378168,3701.5,3699.5,0.8035]
[1733321598330,2.70202,3701.0,3699.7,2.7029]
[1733321598533,0.54218168,3701.5,3699.5,0.8035]
[1733321598534,9.38218168,3701.5,3699.5,0.8035]
[1733321598741,2.70204,3700.9,3699.5,4.23057485]
[1733321598942,0.7869,3700.8,3699.5,0.8035]
[1733321599173,3.48902,3700.8,3699.5,3.50656]
[1733321599976,3.48902,3700.8,3699.5,0.8035]
[1733321599977,2.70228,3700.6,3699.5,0.8035]
[1733321600474,3.7869,3700.8,3699.6,2.70299]
[1733321600772,2.70226,3700.6,3699.5,0.8035]
[1733321601270,2.70236,3700.5,3699.5,0.8035]
[1733321601565,2.70234,3700.5,3699.5,0.8035]
[1733321601940,2.70241,3700.4,3699.5,0.8035]
[1733321602140,12.09234504,3700.6,3699.5,0.8035]
[1733321602330,9.39008504,3700.6,3699.5,0.8035]
[1733321602971,2.70241,3700.4,3699.5,0.8035]
[1733321603173,8.84,3700.6,3699.7,2.70286]
[1733321603468,8.84,3700.6,3699.8,2.70283]
[1733321603768,8.84,3700.6,3699.9,2.70276]
[1733321603969,8.84,3700.6,3699.7,2.7029]
[1733321604384,8.84,3700.6,3699.9,2.70276]
[1733321605367,8.84,3700.6,3700.2,2.70252]
[1733321605571,8.84,3701.5,3700.6,2.70226]
[1733321605775,8.84,3701.5,3700.1,2.70262]
[1733321605958,9.37322947,3701.5,3700.1,2.70262]
[1733321606287,9.37322947,3701.5,3700.6,2.70222]
[1733321606453,0.53322947,3701.5,3700.3,0.7716]
[1733321606773,0.8107,3701.9,3700.2,0.02702199]
[1733321606774,0.8107,3702.3,3701.2,3.47339]
[1733321606935,0.8107,3702.3,3701.2,0.7716]
[1733321607276,8.84,3702.2,3701.2,0.7716]
[1733321607579,9.6507,3702.3,3701.6,2.70151]
[1733321607762,0.8107,3702.7,3701.9,2.70131]
[1733321608076,0.8107,3702.7,3701.2,0.7716]
[1733321608077,8.84,3702.9,3701.7,3.52401]
[1733321608378,8.84,3702.9,3702.0,2.70124]
[1733321609032,8.84,3702.9,3701.7,0.8226]
[1733321609232,3.0,3702.8,3701.7,0.8226]
[1733321609663,3.0,3702.8,3702.1,2.70116]
[1733321609833,3.0,3702.9,3701.7,0.8226]
[1733321610591,3.0,3702.9,3701.9,2.70124]
[1733321610787,8.84,3703.0,3701.7,0.8226]
[1733321610988,8.84,3703.0,3702.2,2.70104]
[1733321611706,8.84,3703.0,3701.7,0.84960859]
[1733321611907,8.84,3703.0,3701.8,3.10633872]
[1733321612229,8.84,3703.0,3701.9,2.70131]
[1733321612429,8.84,3703.0,3701.8,3.10633872]
[1733321612430,8.84,3703.0,3702.2,2.70106]
[1733321612735,8.84,3703.0,3702.4,2.70093]
[1733321613095,8.84,3703.0,3702.3,0.7942]
[1733321613425,8.84,3703.0,3702.3,3.49518]
[1733321613789,8.84,3703.0,3702.3,0.7942]
[1733321614634,3.27910169,3703.2,3702.3,3.49521]
[1733321614804,3.27910169,3703.2,3702.3,0.7942]
[1733321615318,2.70059,3702.9,3701.7,2.70145]
[1733321615505,2.70059,3702.9,3701.8,2.70138]
[1733321616020,2.70044,3703.1,3701.9,2.70127]
[1733321616394,2.70058,3702.9,3701.7,0.7861]
[1733321616594,2.70081,3702.6,3701.7,0.7861]
[1733321617138,0.7777,3702.7,3701.7,0.7861]
[1733321617489,0.7777,3702.7,3701.8,2.70138]
[1733321617693,0.7777,3702.7,3701.7,0.7861]
[1733321618233,0.7777,3702.7,3701.7,3.48755]
[1733321618419,0.7777,3702.7,3701.8,2.70137]
[1733321618930,0.7777,3702.7,3701.7,0.7861]
[1733321619240,3.47843,3702.7,3701.7,0.7861]
[1733321620032,2.95057983,3702.6,3701.7,0.7861]
[1733321620237,2.70081,3702.6,3701.7,0.7861]
[1733321620440,2.95104944,3702.5,3701.7,0.7861]
[1733321620601,2.70087,3702.5,3701.7,0.7861]
[1733321620798,1.32739441,3702.7,3701.7,0.7861]
[1733321621003,2.70107,3702.3,3701.3,0.8182]
[1733321621247,2.70109,3702.2,3701.3,0.8182]
[1733321621470,1.32739441,3702.7,3701.3,0.8182]
[1733321621601,2.70124,3702.0,3701.3,0.8182]
[1733321622915,2.7011,3702.2,3701.3,0.8182]
[1733321623641,2.95204577,3702.1,3701.3,0.8182]
[1733321623827,2.70084,3702.6,3700.9,0.801]
[1733321623828,9.6687,3702.4,3700.9,0.801]
[1733321624138,2.70137,3701.9,3700.9,0.801]
[1733321624316,0.25091926,3701.8,3700.9,0.801]
[1733321625304,0.25091926,3701.8,3700.9,4.00097863]
[1733321625463,8.84,3702.1,3701.2,2.70182]
[1733321625464,0.25091926,3702.0,3701.2,2.70182]
[1733321625625,0.25091926,3702.0,3701.0,2.70196]
[1733321626268,0.25091926,3702.0,3701.1,2.70189]
[1733321626754,0.25091926,3702.0,3700.9,0.801]
[1733321627047,0.7754,3701.9,3700.9,0.801]
[1733321627248,2.70152,3701.7,3700.9,0.801]
[1733321627448,0.25091926,3701.6,3700.9,0.801]
[1733321627757,8.84,3702.1,3701.5,2.70153]
[1733321627916,9.6627,3702.6,3701.6,0.7878]
[1733321628255,1.11384995,3703.1,3701.6,0.7878]
[1733321628256,0.25122397,3702.5,3702.0,2.70121]
[1733321628554,12.65428995,3703.1,3702.1,4.01478957]
[1733321628555,0.25122397,3702.8,3702.1,4.01478957]
[1733321628779,0.25122397,3702.8,3702.6,2.70079]
[1733321629104,0.25122397,3702.8,3702.7,3.51513]
[1733321629381,1.11384995,3703.1,3702.7,0.8144]
[1733321629581,1.11384995,3703.1,3703.0,2.70051]
[1733321632498,1.11384995,3703.1,3702.7,3.51507]
[1733321632499,1.11384995,3703.1,3702.7,0.8144]
[1733321632982,1.11384995,3703.1,3702.7,3.51513]
[1733321633299,1.11384995,3703.1,3702.7,0.8144]
[1733321633795,0.7957,3704.0,3702.7,0.8144]
[1733321633947,0.25144395,3703.9,3702.8,3.12908914]
[1733321634296,3.0,3704.1,3702.8,3.12908914]
[1733321634297,0.50288799,3703.8,3703.0,3.19997863]
[1733321634458,1.92784995,3704.7,3703.9,2.69985]
[1733321634646,0.25151451,3704.6,3703.9,2.69985]
[1733321634840,0.25151451,3704.5,3703.7,1.97987168]
[1733321635085,0.50307058,3704.8,3704.0,2.69977]
[1733321635252,0.25151451,3704.7,3704.1,0.02699564]
[1733321635476,0.25151451,3704.7,3704.4,2.69948]